bitfinex/quotes_BTCUSD_20240918
["timestamp","ask_amount","ask_price","bid_price","bid_amount"]
[1726628255160,0.000822,60477.0,60465.0,1.90039473]
[1726628255391,0.000822,60477.0,60465.0,1.95675342]
[1726628256070,0.000822,60477.0,60465.0,1.71859372]
[1726628256291,0.000822,60477.0,60465.0,1.68407675]
[1726628256529,0.002326,60466.0,60465.0,1.68256336]
[1726628256995,0.002326,60466.0,60465.0,1.66956336]
[1726628257536,0.002326,60466.0,60465.0,1.63598225]
[1726628257772,0.002326,60466.0,60465.0,1.64260925]
[1726628258177,0.002326,60466.0,60465.0,1.65160925]
[1726628258308,0.002326,60466.0,60465.0,1.60261142]
[1726628259144,0.002326,60466.0,60465.0,0.78883367]
[1726628259356,0.002326,60466.0,60465.0,0.029627]
[1726628259590,0.242808,60466.0,60465.0,0.029627]
[1726628259975,0.59031509,60466.0,60465.0,0.014]
[1726628260198,0.59031509,60466.0,60458.0,0.066286]
[1726628260199,0.42493309,60466.0,60458.0,0.066286]
[1726628260407,0.330788,60462.0,60451.0,0.330844]
[1726628260625,0.0945,60457.0,60451.0,0.16305367]
[1726628260849,0.165413,60455.0,60450.0,0.165423]
[1726628261054,0.165413,60455.0,60446.0,0.04899783]
[1726628261055,0.165414,60455.0,60448.0,0.330862]
[1726628261275,0.165409,60456.0,60453.0,0.066288]
[1726628261514,0.0945,60457.0,60453.0,0.165417]
[1726628261515,0.01672595,60454.0,60453.0,0.165417]
[1726628261772,0.0167307,60454.0,60453.0,0.165417]
[1726628261984,0.0945,60457.0,60453.0,0.165417]
[1726628262226,0.001,60455.0,60453.0,0.165417]
[1726628262688,0.330792,60461.0,60453.0,0.165416]
[1726628262906,0.01872595,60454.0,60451.0,0.234715]
[1726628263116,0.002,60454.0,60451.0,0.234715]
[1726628263346,0.002,60454.0,60452.0,0.33084]
[1726628263578,0.002,60454.0,60453.0,0.172417]
[1726628264408,0.165404,60458.0,60453.0,0.165417]
[1726628264623,0.165404,60458.0,60453.0,0.175417]
[1726628264848,0.01672595,60457.0,60453.0,0.175417]
[1726628265083,0.01672595,60457.0,60453.0,0.174417]
[1726628265296,0.01672595,60457.0,60453.0,0.009]
[1726628265297,0.34753895,60457.0,60453.0,0.009]
[1726628265502,0.01672595,60457.0,60453.0,0.009]
[1726628265702,0.18213195,60457.0,60453.0,0.009]
[1726628266121,0.165409,60456.0,60451.0,0.066294]
[1726628266331,0.165416,60454.0,60453.0,0.004]
[1726628266534,0.1821467,60454.0,60453.0,0.004]
[1726628266746,0.0167307,60454.0,60450.0,0.165425]
[1726628267153,0.165411,60456.0,60450.0,0.165425]
[1726628267362,0.01672595,60455.0,60451.0,0.165422]
[1726628267561,0.01672595,60455.0,60453.0,0.005]
[1726628267773,0.18213795,60455.0,60451.0,0.165422]
[1726628268204,0.01672595,60455.0,60451.0,0.330845]
[1726628268440,0.758455,60464.0,60453.0,0.165416]
[1726628268441,0.165403,60459.0,60453.0,0.165416]
[1726628268640,0.001,60456.0,60451.0,0.165422]
[1726628268846,0.001,60456.0,60453.0,0.165416]
[1726628269083,0.165404,60458.0,60453.0,0.165416]
[1726628269285,0.01672595,60455.0,60453.0,0.165416]
[1726628269494,0.001,60455.0,60449.0,0.64939175]
[1726628269736,0.001,60455.0,60454.0,0.165415]
[1726628269916,0.165407,60457.0,60453.0,0.008]
[1726628270131,0.001,60458.0,60453.0,0.165417]
[1726628270355,0.001,60458.0,60453.0,0.009]
[1726628270573,0.001,60458.0,60454.0,0.165414]
[1726628271089,0.001,60458.0,60454.0,0.174414]
[1726628271330,0.001,60458.0,60457.0,0.165406]
[1726628271578,0.166897,60462.0,60457.0,0.165406]
[1726628271802,0.001504,60462.0,60457.0,0.165406]
[1726628272225,0.001504,60462.0,60461.0,0.165395]
[1726628272866,0.001504,60462.0,60461.0,0.64842575]
[1726628273083,0.002504,60462.0,60461.0,0.64842575]
[1726628273294,0.002504,60462.0,60461.0,1.47306142]
[1726628273504,0.002504,60462.0,60461.0,1.59606142]
[1726628273714,0.002504,60462.0,60461.0,1.59706142]
[1726628273920,0.002504,60462.0,60461.0,1.59606142]
[1726628275000,0.002504,60462.0,60461.0,0.94047942]
[1726628275211,0.002504,60462.0,60461.0,0.91747942]
[1726628275212,0.001504,60462.0,60461.0,0.91747942]
[1726628275440,0.001504,60462.0,60461.0,0.006]
[1726628275654,0.01819315,60462.0,60461.0,0.006]
[1726628276160,0.01919315,60462.0,60461.0,0.007]
[1726628276295,0.01919315,60462.0,60461.0,0.001]
[1726628276514,0.01819315,60462.0,60461.0,0.014]
[1726628276723,0.01819315,60462.0,60461.0,0.184395]
[1726628276921,0.01819315,60462.0,60461.0,0.019]
[1726628277131,0.01819315,60462.0,60461.0,0.198395]
[1726628277349,0.01819315,60462.0,60461.0,0.033]
[1726628277558,0.001504,60462.0,60461.0,0.033]
[1726628277768,0.166897,60462.0,60461.0,0.033]
[1726628277973,0.18358615,60462.0,60461.0,0.033]
[1726628278825,0.18358615,60462.0,60461.0,0.028]
[1726628279040,0.18458615,60462.0,60461.0,0.028]
[1726628279243,0.18458615,60462.0,60461.0,0.014]
[1726628279449,0.01919315,60462.0,60458.0,0.165403]
[1726628279663,0.01819315,60462.0,60461.0,0.005]
[1726628279897,0.01919315,60462.0,60461.0,0.005]
[1726628280089,0.18458615,60462.0,60461.0,0.005]
[1726628280292,0.01819315,60462.0,60461.0,0.005]
[1726628281175,0.51437215,60462.0,60461.0,0.005]
[1726628281786,0.51537215,60462.0,60461.0,0.005]
[1726628281994,0.01919315,60462.0,60461.0,0.005]
[1726628282203,0.01819315,60462.0,60461.0,0.005]
[1726628282445,0.01819315,60462.0,60461.0,0.170395]
[1726628282649,0.002504,60462.0,60461.0,0.335791]
[1726628282858,0.002504,60462.0,60461.0,0.005]
[1726628283060,0.01917865,60462.0,60461.0,0.501186]
[1726628283275,0.01917865,60462.0,60461.0,0.65342575]
[1726628283474,0.002504,60462.0,60461.0,0.170395]
[1726628284136,0.002504,60462.0,60461.0,0.005]
[1726628284347,0.16872,60462.0,60461.0,0.005]
[1726628284562,0.02001283,60462.0,60461.0,0.005]
[1726628284977,0.18540583,60462.0,60461.0,0.005]
[1726628285211,0.51619183,60462.0,60461.0,0.005]
[1726628285629,0.02001283,60462.0,60461.0,0.170395]
[1726628286258,0.02001283,60462.0,60461.0,0.501186]
[1726628286494,0.003327,60462.0,60461.0,0.501186]
[1726628288011,0.003327,60462.0,60461.0,0.170395]
[1726628288223,0.003327,60462.0,60461.0,0.501186]
[1726628290269,0.003327,60462.0,60461.0,0.831977]
[1726628291211,0.003327,60462.0,60461.0,1.14727042]
[1726628291654,0.003327,60462.0,60461.0,1.1965735]
[1726628292124,0.003327,60462.0,60461.0,1.14727042]
[1726628292611,0.003327,60462.0,60461.0,1.19657067]
[1726628293125,0.003327,60462.0,60461.0,1.04433252]
[1726628293348,0.003327,60462.0,60461.0,0.99503067]
[1726628293568,0.003327,60462.0,60461.0,1.50106142]
[1726628293798,0.003327,60462.0,60461.0,1.55201419]
[1726628294049,0.003327,60462.0,60461.0,1.47806142]
[1726628294547,0.003327,60462.0,60461.0,1.47306142]
[1726628294771,0.002327,60462.0,60461.0,1.19158055]
[1726628295004,0.002327,60462.0,60461.0,1.05834201]
[1726628295718,0.002327,60462.0,60461.0,0.845977]
[1726628295964,0.002327,60462.0,60461.0,1.0583435]
[1726628297041,0.002327,60462.0,60461.0,1.00903067]
[1726628297276,0.002327,60462.0,60461.0,1.0583435]
[1726628297768,0.002327,60462.0,60461.0,1.05834801]
[1726628298006,0.002327,60462.0,60461.0,1.00903067]
[1726628298489,0.002327,60462.0,60461.0,1.05834582]
[1726628298733,0.002327,60462.0,60461.0,0.019]
[1726628299514,0.002327,60462.0,60461.0,0.014]
[1726628299730,0.01904021,60462.0,60461.0,0.014]
[1726628299943,0.002327,60462.0,60461.0,0.014]
[1726628300180,0.01904021,60462.0,60459.0,0.167047]
[1726628300397,0.002327,60462.0,60459.0,0.167047]
[1726628300613,0.002327,60462.0,60461.0,0.002]
[1726628301089,0.003327,60462.0,60461.0,0.006]
[1726628301311,0.003327,60462.0,60459.0,0.001646]
[1726628301540,0.002327,60462.0,60459.0,0.167046]
[1726628301791,0.002327,60462.0,60459.0,0.171046]
[1726628302014,0.003327,60462.0,60459.0,0.171046]
[1726628302965,0.002327,60462.0,60459.0,0.167046]
[1726628303390,0.002327,60462.0,60461.0,0.004]
[1726628303610,0.002327,60462.0,60461.0,0.165395]
[1726628303844,0.002327,60462.0,60461.0,0.496186]
[1726628304070,0.002327,60462.0,60461.0,0.99003067]
[1726628304307,0.003327,60462.0,60461.0,0.99003067]
[1726628304734,0.002327,60462.0,60461.0,0.99003067]
[1726628304946,0.002327,60462.0,60461.0,0.99403067]
[1726628305132,0.003327,60462.0,60461.0,0.99403067]
[1726628305795,0.002327,60462.0,60461.0,0.99403067]
[1726628306012,0.002327,60462.0,60461.0,0.66323967]
[1726628306458,0.002327,60462.0,60461.0,0.65923967]
[1726628306812,0.002327,60462.0,60461.0,0.99003067]
[1726628306903,0.003327,60462.0,60461.0,0.99003067]
[1726628307109,0.003327,60462.0,60461.0,0.66423967]
[1726628307326,0.003327,60462.0,60461.0,0.99503067]
[1726628307763,0.003327,60462.0,60461.0,0.170395]
[1726628308207,0.003327,60462.0,60461.0,0.501186]
[1726628309251,0.003327,60462.0,60461.0,0.831977]
[1726628309460,0.003327,60462.0,60461.0,1.47806142]
[1726628309671,0.003327,60462.0,60461.0,1.57679983]
[1726628309881,0.003327,60462.0,60461.0,1.47806142]
[1726628310086,0.003327,60462.0,60461.0,1.57679984]
[1726628310731,0.003327,60462.0,60461.0,1.09376909]
[1726628310941,0.003327,60462.0,60461.0,0.57524749]
[1726628311149,0.003327,60462.0,60461.0,0.501186]
[1726628311357,0.003327,60462.0,60461.0,0.55056418]
[1726628311562,0.003327,60462.0,60461.0,0.55056608]
[1726628312617,0.003327,60462.0,60461.0,0.5505698]
[1726628314638,0.003327,60462.0,60461.0,0.501186]
[1726628315985,0.003327,60462.0,60461.0,0.57527493]
[1726628316237,0.003327,60462.0,60461.0,0.24448393]
[1726628316466,0.003327,60462.0,60460.0,0.165397]
[1726628316467,0.002327,60462.0,60460.0,0.165397]
[1726628316672,0.003327,60462.0,60461.0,0.007]
[1726628316906,0.0911,60461.0,60459.0,0.05104332]
[1726628317128,0.72119357,60460.0,60459.0,0.001646]
[1726628317343,1.05399057,60460.0,60459.0,0.001646]
[1726628317558,1.07067091,60460.0,60459.0,0.001646]
[1726628317746,1.40146791,60460.0,60459.0,0.001646]
[1726628319324,1.40346791,60460.0,60459.0,0.002646]
[1726628320230,1.40146791,60460.0,60459.0,0.002646]
[1726628321163,1.42741663,60460.0,60459.0,0.002646]
[1726628321612,1.42941663,60460.0,60459.0,0.002646]
[1726628321848,1.27517688,60460.0,60459.0,0.002646]
[1726628322076,0.94437988,60460.0,60459.0,0.002646]
[1726628322287,0.94437988,60460.0,60459.0,0.001646]
[1726628322468,0.92043116,60460.0,60459.0,0.002646]
[1726628322914,0.92043116,60460.0,60459.0,0.001646]
[1726628322915,1.24722816,60460.0,60459.0,0.001646]
[1726628323124,0.91643116,60460.0,60459.0,0.001646]
[1726628323331,1.25122816,60460.0,60459.0,0.002646]
[1726628323785,0.92043116,60460.0,60459.0,0.002646]
[1726628324206,1.25122816,60460.0,60459.0,0.002646]
[1726628324843,1.39946791,60460.0,60459.0,0.001646]
[1726628325270,1.40446791,60460.0,60459.0,0.002646]
[1726628325482,1.40346791,60460.0,60459.0,0.002646]
[1726628325715,1.40146791,60460.0,60459.0,0.001646]
[1726628325959,1.40246791,60460.0,60459.0,0.001646]
[1726628326176,1.40346791,60460.0,60459.0,0.002646]
[1726628326614,1.40246791,60460.0,60459.0,0.001646]
[1726628326845,1.40046791,60460.0,60459.0,0.001646]
[1726628328042,1.40146791,60460.0,60459.0,0.002646]
[1726628328289,1.25022816,60460.0,60459.0,0.002646]
[1726628328533,0.91743116,60460.0,60459.0,0.001646]
[1726628328780,0.91743116,60460.0,60459.0,0.002646]
[1726628328781,0.51687534,60460.0,60459.0,0.002646]
[1726628329594,0.51287534,60460.0,60459.0,0.001646]
[1726628329795,0.84667234,60460.0,60459.0,0.002646]
[1726628330996,0.84467234,60460.0,60459.0,0.001646]
[1726628331468,0.84667234,60460.0,60459.0,0.002646]
[1726628333414,0.84749534,60460.0,60459.0,0.002646]
[1726628335364,1.17829234,60460.0,60459.0,0.002646]
[1726628335597,1.4033593,60460.0,60459.0,0.002646]
[1726628335846,1.4053593,60460.0,60459.0,0.002646]
[1726628336097,1.5002593,60460.0,60459.0,0.002646]
[1726628337555,1.4982593,60460.0,60459.0,0.002646]
[1726628339001,1.34601955,60460.0,60459.0,0.002646]
[1726628340565,1.5002593,60460.0,60459.0,0.002646]
[1726628340996,1.52620935,60460.0,60459.0,0.002646]
[1726628343692,1.52420935,60460.0,60459.0,0.002646]
[1726628344561,1.52620935,60460.0,60459.0,0.002646]
[1726628345214,1.52420935,60460.0,60459.0,0.002646]
[1726628345435,1.52620935,60460.0,60459.0,0.002646]
[1726628345622,1.52420935,60460.0,60459.0,0.002646]
[1726628346364,1.52620935,60460.0,60459.0,0.002646]
[1726628347423,1.5002593,60460.0,60459.0,0.002646]
[1726628348553,0.02050334,60460.0,60459.0,0.506348]
[1726628348846,0.02050334,60460.0,60459.0,0.671749]
[1726628349099,0.003823,60460.0,60459.0,0.671749]
[1726628349337,0.001823,60460.0,60459.0,0.670749]
[1726628349582,0.001823,60460.0,60459.0,0.671749]
[1726628349812,0.002823,60460.0,60459.0,0.671749]
[1726628350043,0.002823,60460.0,60459.0,0.681749]
[1726628350265,0.000823,60460.0,60459.0,0.681749]
[1726628351383,0.000823,60460.0,60459.0,1.001551]
[1726628351810,0.000823,60460.0,60459.0,1.016551]
[1726628352968,0.000823,60460.0,60459.0,1.025551]
[1726628353176,0.000823,60460.0,60459.0,1.028551]
[1726628353388,0.000823,60460.0,60459.0,1.359353]
[1726628359012,0.000823,60460.0,60459.0,1.028551]
[1726628359272,0.000823,60460.0,60459.0,1.03518]
[1726628359711,0.02676702,60460.0,60459.0,1.03518]
[1726628359929,0.000823,60460.0,60459.0,1.03518]
[1726628360164,0.02676775,60460.0,60459.0,1.03518]
[1726628362202,0.000823,60460.0,60459.0,1.03518]
[1726628367151,0.02676692,60460.0,60459.0,1.03518]
[1726628367550,0.000823,60460.0,60459.0,1.03518]
[1726628367789,0.02676759,60460.0,60459.0,1.03518]
[1726628368690,0.000823,60460.0,60459.0,1.03518]
[1726628371230,0.02676689,60460.0,60459.0,1.03518]
[1726628371618,0.000823,60460.0,60459.0,1.03518]
[1726628374524,0.000823,60460.0,60459.0,1.365982]
[1726628374970,0.000823,60460.0,60459.0,1.03518]
[1726628376513,0.000823,60460.0,60459.0,1.52903567]
[1726628378308,0.000823,60460.0,60459.0,1.57834346]
[1726628378534,0.000823,60460.0,60459.0,1.52903567]
[1726628379391,0.000823,60460.0,60459.0,1.54903567]
[1726628379600,0.000823,60460.0,60459.0,1.59832484]
[1726628380021,0.000823,60460.0,60459.0,1.54903567]
[1726628380454,0.000823,60460.0,60459.0,1.574322]
[1726628380669,0.000823,60460.0,60459.0,1.59432151]
[1726628381093,0.000823,60460.0,60459.0,1.57432151]
[1726628381306,0.000823,60460.0,60459.0,1.58832151]
[1726628381517,0.000823,60460.0,60459.0,1.60132151]
[1726628383667,0.000823,60460.0,60459.0,1.55203567]
[1726628384091,0.000823,60460.0,60459.0,1.62596809]
[1726628384574,0.000823,60460.0,60459.0,1.65060736]
[1726628384805,0.000823,60460.0,60459.0,1.62597593]
[1726628388572,0.000823,60460.0,60459.0,1.55203567]
[1726628388798,0.000823,60460.0,60459.0,1.65060736]
[1726628389205,0.000823,60460.0,60459.0,1.55203567]
[1726628389432,0.000823,60460.0,60459.0,1.65060736]
[1726628390133,0.000823,60460.0,60459.0,1.75002089]
[1726628390473,0.000823,60460.0,60459.0,1.6514492]
[1726628391148,0.000823,60460.0,60459.0,1.72718988]
[1726628391351,0.000823,60460.0,60459.0,1.6284492]
[1726628391560,0.000823,60460.0,60459.0,1.75187641]
[1726628391979,0.000823,60460.0,60459.0,1.72487641]
[1726628392404,0.000823,60460.0,60459.0,1.6284492]
[1726628392809,0.000823,60460.0,60459.0,1.6144492]
[1726628393060,0.000823,60460.0,60459.0,1.6284492]
[1726628393688,0.000823,60460.0,60459.0,1.2976472]
[1726628393887,0.000823,60460.0,60459.0,1.2846472]
[1726628394231,0.000823,60460.0,60459.0,1.75201489]
[1726628394438,0.000823,60460.0,60459.0,1.19823367]
[1726628394646,0.000823,60460.0,60459.0,1.14890634]
[1726628395297,0.000823,60460.0,60459.0,1.11119849]
[1726628395521,0.000823,60460.0,60459.0,1.1966146]
[1726628395746,0.000823,60460.0,60459.0,1.1247472]
[1726628396001,0.000823,60460.0,60459.0,1.223616]
[1726628396700,0.000823,60460.0,60459.0,1.2223472]
[1726628396912,0.000823,60460.0,60459.0,1.73267127]
[1726628397129,0.000823,60460.0,60459.0,1.5531492]
[1726628397826,0.000823,60460.0,60459.0,1.5401492]
[1726628398042,0.000823,60460.0,60459.0,1.5261492]
[1726628398264,0.000823,60460.0,60459.0,1.5531492]
[1726628398777,0.000823,60460.0,60459.0,1.5261492]
[1726628399002,0.000823,60460.0,60459.0,1.5401492]
[1726628399237,0.000823,60460.0,60459.0,1.5541492]
[1726628400119,0.000823,60460.0,60459.0,2.26165397]
[1726628400350,0.000823,60460.0,60459.0,1.80135182]
[1726628400572,0.000823,60460.0,60459.0,1.7295492]
[1726628400816,0.000823,60460.0,60459.0,1.02633367]
[1726628401055,0.000823,60460.0,60459.0,1.14987363]
[1726628401308,0.000823,60460.0,60459.0,1.48067563]
[1726628401530,0.000823,60460.0,60459.0,1.35713567]
[1726628401959,0.000823,60460.0,60459.0,1.50863258]
[1726628402450,0.000823,60460.0,60459.0,1.60343258]
[1726628402672,0.000823,60460.0,60459.0,1.72697921]
[1726628403151,0.000823,60460.0,60459.0,1.60343258]
[1726628403605,0.000823,60460.0,60459.0,1.17783058]
[1726628403955,0.000823,60460.0,60459.0,1.02633367]
[1726628404531,0.000823,60460.0,60459.0,1.86092041]
[1726628404745,0.000823,60460.0,60459.0,1.75743258]
[1726628405375,0.000823,60460.0,60459.0,1.70443258]
[1726628405802,0.000823,60460.0,60459.0,1.73423259]
[1726628406013,0.000823,60460.0,60459.0,1.73392972]
[1726628406484,0.000823,60460.0,60459.0,1.75692972]
[1726628408826,0.000823,60460.0,60459.0,1.72892972]
[1726628409059,0.000823,60460.0,60459.0,1.74292972]
[1726628409280,0.000823,60460.0,60459.0,1.75692972]
[1726628412064,0.000823,60460.0,60459.0,2.08773172]
[1726628412272,0.000823,60460.0,60459.0,1.75692972]
[1726628412701,0.000823,60460.0,60459.0,2.08773172]
[1726628412984,0.000823,60460.0,60459.0,1.75692972]
[1726628413142,0.000823,60460.0,60459.0,1.72692972]
[1726628413566,0.000823,60460.0,60459.0,1.75692972]
[1726628415046,0.0003268,60460.0,60459.0,1.75692972]
[1726628415264,0.0003268,60460.0,60459.0,1.74292972]
[1726628415468,0.0003268,60460.0,60459.0,1.72692972]
[1726628416085,0.0003268,60460.0,60459.0,1.74092972]
[1726628416917,0.0003268,60460.0,60459.0,1.72692972]
[1726628417534,0.0003268,60460.0,60459.0,1.69892972]
[1726628417773,0.0003268,60460.0,60459.0,1.72692972]
[1726628419972,0.0003268,60460.0,60459.0,1.75692972]
[1726628420611,0.0003268,60460.0,60459.0,2.20566815]
[1726628420819,0.0003268,60460.0,60459.0,2.26335142]
[1726628421251,0.0003268,60460.0,60459.0,2.20741499]
[1726628421498,0.0003268,60460.0,60459.0,2.64170482]
[1726628421714,0.0032125,60471.0,60463.0,0.002]
[1726628421948,0.0032125,60471.0,60470.0,0.89510991]
[1726628422131,0.0032125,60471.0,60470.0,1.71964758]
[1726628422612,0.0032125,60471.0,60470.0,2.05038958]
[1726628423109,0.0032125,60471.0,60470.0,2.04838958]
[1726628423829,0.0032125,60471.0,60470.0,2.05811906]
[1726628424069,0.0032125,60471.0,60470.0,2.02811906]
[1726628424306,0.0032125,60471.0,60470.0,2.05611906]
[1726628424817,0.0032125,60471.0,60470.0,2.08611906]
[1726628425075,0.0032125,60471.0,60470.0,2.08811906]
[1726628426106,0.0032125,60471.0,60470.0,2.08611906]
[1726628426338,0.0032125,60471.0,60470.0,2.08811906]
[1726628427042,0.0032125,60471.0,60470.0,2.08611906]
[1726628427257,0.0032125,60471.0,60470.0,2.23405928]
[1726628427481,0.0032125,60471.0,60470.0,2.41886106]
[1726628427691,0.0040355,60471.0,60470.0,2.41886106]
[1726628427911,0.0040355,60471.0,60470.0,2.47886106]
[1726628428361,0.0040355,60471.0,60470.0,2.56156106]
[1726628430581,0.0040355,60471.0,60470.0,2.70930018]
[1726628431241,0.0040355,60471.0,60470.0,2.70927423]
[1726628431870,0.0040355,60471.0,60470.0,2.56156106]
[1726628432705,0.0040355,60471.0,60470.0,2.70914598]
[1726628434057,0.0040355,60471.0,60470.0,2.56156106]
[1726628434965,0.000822,60477.0,60476.0,1.58759]
[1726628435175,0.000822,60477.0,60476.0,2.12352345]
[1726628436500,0.000822,60477.0,60476.0,1.67041445]
[1726628436727,0.000822,60477.0,60476.0,0.179354]
[1726628436944,0.091222,60477.0,60476.0,0.179354]
[1726628437174,0.091222,60477.0,60476.0,0.344709]
[1726628437414,0.10492818,60477.0,60476.0,0.510063]
[1726628437641,0.10492818,60477.0,60476.0,0.028]
[1726628438107,0.10492818,60477.0,60475.0,0.165356]
[1726628438339,0.10492818,60477.0,60476.0,0.007]
[1726628438552,0.10492818,60477.0,60476.0,0.172354]
[1726628439610,0.10492818,60477.0,60476.0,0.165354]
[1726628439831,0.10492818,60477.0,60476.0,0.502063]
[1726628440050,0.10592818,60477.0,60476.0,0.832772]
[1726628440262,0.092222,60477.0,60476.0,0.826772]
[1726628440472,0.000822,60477.0,60476.0,0.504063]
[1726628440967,0.001822,60477.0,60476.0,0.496063]
[1726628441176,0.001822,60477.0,60476.0,0.505063]
[1726628441389,0.001822,60477.0,60476.0,0.496063]
[1726628441608,0.01551391,60477.0,60476.0,0.496063]
[1726628441828,0.001822,60477.0,60476.0,0.496063]
[1726628442289,0.001822,60477.0,60476.0,0.165354]
[1726628442739,0.01551391,60477.0,60476.0,0.165354]
[1726628442955,0.01451391,60477.0,60476.0,0.503063]
[1726628443174,0.01451391,60477.0,60476.0,0.166354]
[1726628443395,0.01451391,60477.0,60476.0,0.011]
[1726628443613,0.01451391,60477.0,60476.0,0.175354]
[1726628443836,0.01451391,60477.0,60476.0,0.165354]
[1726628444063,0.01451391,60477.0,60476.0,0.178354]
[1726628444276,0.01451391,60477.0,60476.0,0.167354]
[1726628444724,0.01451391,60477.0,60476.0,0.177354]
[1726628445189,0.01451391,60477.0,60476.0,0.508063]
[1726628445906,0.01451391,60477.0,60476.0,0.498063]
[1726628446412,0.01451391,60477.0,60476.0,0.507063]
[1726628446660,0.01451391,60477.0,60476.0,0.176354]
[1726628446905,0.01451391,60477.0,60476.0,0.179354]
[1726628447140,0.01451391,60477.0,60476.0,0.165354]
[1726628447399,0.01451391,60477.0,60476.0,0.175354]
[1726628447651,0.01451391,60477.0,60476.0,0.167354]
[1726628447882,0.01451391,60477.0,60476.0,0.002]
[1726628448577,0.04045125,60477.0,60476.0,0.167354]
[1726628449036,0.04045125,60477.0,60476.0,0.178354]
[1726628449266,0.04045125,60477.0,60476.0,0.165354]
[1726628449503,0.04045125,60477.0,60476.0,0.179354]
[1726628449956,0.04045125,60477.0,60476.0,0.177354]
[1726628450165,0.04045125,60477.0,60476.0,0.508063]
[1726628450391,0.04045125,60477.0,60476.0,0.499063]
[1726628450614,0.04045125,60477.0,60476.0,0.510063]
[1726628450848,0.04045125,60477.0,60476.0,0.829772]
[1726628451079,0.02675934,60477.0,60476.0,0.829772]
[1726628451519,0.02675934,60477.0,60476.0,0.499063]
[1726628452337,0.02675934,60477.0,60476.0,0.841772]
[1726628452537,0.000822,60477.0,60476.0,0.838772]
[1726628452741,0.000822,60477.0,60476.0,0.840772]
[1726628453172,0.000822,60477.0,60476.0,1.04152483]
[1726628453521,0.000822,60477.0,60476.0,0.65955991]
[1726628453760,0.000822,60477.0,60476.0,0.66255991]
[1726628454187,0.000822,60477.0,60476.0,0.99326891]
[1726628456229,0.000822,60477.0,60476.0,0.511063]
[1726628457085,0.0267594,60477.0,60476.0,0.511063]
[1726628457532,0.0267594,60477.0,60476.0,0.841772]
[1726628457759,0.0267594,60477.0,60476.0,0.511063]
[1726628457966,0.0267594,60477.0,60476.0,0.841772]
[1726628458433,0.0267594,60477.0,60476.0,0.511063]
[1726628458901,0.0267594,60477.0,60476.0,0.841772]
[1726628459773,0.0267594,60477.0,60476.0,0.8910783]
[1726628459774,0.000822,60477.0,60476.0,0.8910783]
[1726628460007,0.000822,60477.0,60476.0,0.841772]
[1726628460697,0.000822,60477.0,60476.0,0.8910783]
[1726628460918,0.000822,60477.0,60476.0,0.841772]
[1726628461360,0.000822,60477.0,60476.0,0.511063]
[1726628461635,0.000822,60477.0,60476.0,0.841772]
[1726628462103,0.000822,60477.0,60476.0,1.841772]
[1726628462576,0.000822,60477.0,60476.0,1.511063]
[1726628463044,0.000822,60477.0,60476.0,1.841772]
[1726628463492,0.000822,60477.0,60476.0,2.24644324]
[1726628463723,0.000822,60477.0,60476.0,2.27109733]
[1726628464251,0.000822,60477.0,60476.0,2.24642514]
[1726628464711,0.000822,60477.0,60476.0,2.172481]
[1726628464942,0.000822,60477.0,60476.0,2.272481]
[1726628465171,0.000822,60477.0,60476.0,2.39575141]
[1726628465669,0.000822,60477.0,60476.0,2.84344367]
[1726628465676,0.000822,60477.0,60476.0,2.66065916]
[1726628466193,0.000822,60477.0,60476.0,2.50073467]
[1726628466449,0.000822,60477.0,60476.0,2.51173467]
[1726628466695,0.000822,60477.0,60476.0,2.50973467]
[1726628466947,0.000822,60477.0,60476.0,2.63299019]
[1726628467197,0.000822,60477.0,60476.0,2.52373467]
[1726628467925,0.000822,60477.0,60476.0,2.64699234]
[1726628468150,0.000822,60477.0,60476.0,2.63499234]
[1726628468376,0.000822,60477.0,60476.0,2.49773467]
[1726628468590,0.000822,60477.0,60476.0,2.64899364]
[1726628469022,0.000822,60477.0,60476.0,2.51173467]
[1726628469241,0.000822,60477.0,60476.0,2.52573467]
[1726628470111,0.000822,60477.0,60476.0,2.648993]
[1726628470356,0.000822,60477.0,60476.0,2.52573467]
[1726628471746,0.000822,60477.0,60476.0,2.64899667]
[1726628471943,0.000822,60477.0,60476.0,2.52573467]
[1726628472150,0.000822,60477.0,60476.0,2.62509022]
[1726628475159,0.00073932,60477.0,60476.0,2.62509022]
[1726628475837,0.00073932,60477.0,60476.0,1.29198292]
[1726628476050,0.00073932,60477.0,60476.0,1.26733157]
[1726628476272,0.00073932,60477.0,60476.0,2.00345241]
[1726628477223,0.00073932,60477.0,60476.0,1.95412755]
[1726628477681,0.00073932,60477.0,60476.0,1.62341855]
[1726628478156,0.00073932,60477.0,60476.0,1.524063]
[1726628478414,0.00073932,60477.0,60476.0,1.510063]
[1726628478648,0.00073932,60477.0,60476.0,1.496063]
[1726628478896,0.00073932,60477.0,60476.0,1.517063]
[1726628479125,0.00073932,60477.0,60476.0,1.56639481]
[1726628479388,0.00073932,60477.0,60476.0,1.517063]
[1726628480044,0.00073932,60477.0,60476.0,1.186354]
[1726628480250,0.00073932,60477.0,60476.0,1.021]
[1726628480682,0.01444906,60477.0,60476.0,1.021]
[1726628481180,0.20573738,60477.0,60476.0,1.021]
[1726628481621,0.91171157,60477.0,60476.0,1.021]
[1726628482483,0.91171157,60477.0,60476.0,1.014]
[1726628482702,0.91171157,60477.0,60476.0,1.002]
[1726628482918,0.91171157,60477.0,60476.0,1.011]
[1726628483090,0.91171157,60477.0,60476.0,1.0]
[1726628483459,0.91371157,60477.0,60476.0,1.003]
[1726628484947,0.58300757,60477.0,60476.0,1.003]
[1726628486158,0.60894629,60477.0,60476.0,1.003]
[1726628490091,0.11289029,60477.0,60476.0,1.003]
[1726628490299,0.27824229,60477.0,60476.0,1.003]
[1726628490507,0.11289029,60477.0,60476.0,1.003]
[1726628490937,0.27824229,60477.0,60476.0,1.003]
[1726628491180,0.11289029,60477.0,60476.0,1.003]
[1726628491388,0.27824229,60477.0,60476.0,1.003]
[1726628493067,0.11289029,60477.0,60476.0,1.003]